[Event "MCR rapid mládeže 2023 U16"]
[Site "Harachov, Czech Republic"]
[Date "2023.09.10"]
[Round "9.33"]
[White "Vorlik, Jachym"]
[Black "Galia, Simon"]
[Result "1-0"]
[TimeControl "20min+5s/move"]
[WhiteElo "1210"]
[BlackElo "1138"]

1. e4 {[%clk 00:20:05]} {[%emt 00:00:04]} e5 {[%clk 00:20:07]} {[%emt
00:00:03]} 2. Nf3 {[%clk 00:20:09]} {[%emt 00:00:01]} Nf6 {[%clk 00:20:09]}
{[%emt 00:00:03]} 3. Nc3 {[%clk 00:20:07]} {[%emt 00:00:08]} Nc6 {[%clk
00:19:50]} {[%emt 00:00:23]} 4. d4 {[%clk 00:20:02]} {[%emt 00:00:10]} exd4
{[%clk 00:19:51]} {[%emt 00:00:04]} 5. Nxd4 {[%clk 00:20:04]} {[%emt 00:00:03]}
Bb4 {[%clk 00:19:42]} {[%emt 00:00:13]} 6. Nxc6 {[%clk 00:19:59]} {[%emt
00:00:11]} dxc6 {[%clk 00:19:42]} {[%emt 00:00:05]} 7. Qxd8+ {[%clk 00:19:58]}
{[%emt 00:00:07]} Kxd8 {[%clk 00:19:38]} {[%emt 00:00:07]} 8. Bg5 {[%clk
00:19:45]} {[%emt 00:00:19]} Re8 {[%clk 00:19:32]} {[%emt 00:00:10]} 9. Bxf6+
{[%clk 00:19:35]} {[%emt 00:00:16]} gxf6 {[%clk 00:19:29]} {[%emt 00:00:08]} 10.
Bd3 {[%clk 00:19:34]} {[%emt 00:00:06]} Bf5 {[%clk 00:19:02]} {[%emt 00:00:31]}
11. O-O-O {[%clk 00:19:15]} {[%emt 00:00:25]} Bg6 {[%clk 00:18:44]} {[%emt
00:00:23]} 12. f4 {[%clk 00:18:25]} {[%emt 00:00:56]} Kc8 {[%clk 00:18:25]}
{[%emt 00:00:23]} 13. f5 {[%clk 00:18:12]} {[%emt 00:00:18]} Bh5 {[%clk
00:18:15]} {[%emt 00:00:14]} 14. Rdg1 {[%clk 00:17:53]} {[%emt 00:00:25]} Bxc3
{[%clk 00:18:04]} {[%emt 00:00:15]} 15. bxc3 {[%clk 00:17:55]} {[%emt
00:00:04]} b6 {[%clk 00:17:51]} {[%emt 00:00:17]} 16. g4 {[%clk 00:17:36]}
{[%emt 00:00:25]} Bxg4 {[%clk 00:17:44]} {[%emt 00:00:11]} 17. Rxg4 {[%clk
00:17:39]} {[%emt 00:00:04]} Kb7 {[%clk 00:17:40]} {[%emt 00:00:08]} 18. Rg7
{[%clk 00:17:33]} {[%emt 00:00:10]} Rh8 {[%clk 00:17:28]} {[%emt 00:00:17]} 19.
Rxf7 {[%clk 00:17:28]} {[%emt 00:00:11]} Raf8 {[%clk 00:17:23]} {[%emt
00:00:09]} 20. Rg7 {[%clk 00:17:02]} {[%emt 00:00:32]} b5 {[%clk 00:17:20]}
{[%emt 00:00:08]} 21. Rhg1 {[%clk 00:16:59]} {[%emt 00:00:08]} a5 {[%clk
00:16:53]} {[%emt 00:00:31]} 22. Re7 {[%emt 00:00:21]} Rhg8 {[%clk 00:16:28]}
{[%emt 00:00:26]} 23. Rgg7 {[%clk 00:16:34]} {[%emt 00:00:18]} Rxg7 {[%clk
00:16:24]} {[%emt 00:00:09]} 24. Rxg7 {[%clk 00:16:37]} {[%emt 00:00:03]} Rh8
{[%clk 00:16:22]} {[%emt 00:00:06]} 25. Rf7 {[%clk 00:16:35]} {[%emt 00:00:08]}
Rg8 {[%clk 00:16:19]} {[%emt 00:00:07]} 26. Rxf6 {[%clk 00:16:31]} {[%emt
00:00:10]} Rg1+ {[%clk 00:16:17]} {[%emt 00:00:05]} 27. Kb2 {[%clk 00:16:35]}
{[%emt 00:00:03]} c5 {[%clk 00:15:54]} {[%emt 00:00:26]} 28. Bxb5 {[%clk
00:16:23]} {[%emt 00:00:19]} Re1 {[%clk 00:15:47]} {[%emt 00:00:11]} 29. Bc6+
{[%clk 00:16:15]} {[%emt 00:00:13]} Ka7 {[%clk 00:15:34]} {[%emt 00:00:18]} 30.
Rh6 {[%clk 00:16:08]} {[%emt 00:00:13]} Re2 {[%clk 00:14:59]} {[%emt 00:00:38]}
31. Rxh7 {[%clk 00:15:41]} {[%emt 00:00:34]} Kb6 {[%clk 00:14:56]} {[%emt
00:00:07]} 32. Rh6 {[%clk 00:15:38]} {[%emt 00:00:10]} Ka7 {[%clk 00:14:55]}
{[%emt 00:00:04]} 33. f6 {[%clk 00:15:27]} {[%emt 00:00:16]} Rf2 {[%clk
00:14:52]} {[%emt 00:00:08]} 34. Bd5 {[%clk 00:15:19]} {[%emt 00:00:14]} Kb8
{[%clk 00:14:42]} {[%emt 00:00:13]} 35. Rh8+ {[%clk 00:15:18]} {[%emt
00:00:06]} Ka7 {[%clk 00:14:42]} {[%emt 00:00:07]} 36. f7 {[%clk 00:15:15]}
{[%emt 00:00:09]} Rxf7 {[%clk 00:14:38]} {[%emt 00:00:09]} 37. Bxf7 {[%clk
00:15:16]} {[%emt 00:00:03]} c4 {[%clk 00:14:38]} {[%emt 00:00:04]} 38. e5
{[%clk 00:14:48]} {[%emt 00:00:35]} Kb6 {[%clk 00:14:38]} {[%emt 00:00:04]} 39.
e6 {[%clk 00:14:51]} {[%emt 00:00:02]} c5 {[%clk 00:14:33]} {[%emt 00:00:10]}
40. e7 {[%clk 00:14:52]} {[%emt 00:00:04]} a4 {[%clk 00:14:35]} {[%emt
00:00:03]} 41. Rh6+ {[%clk 00:14:43]} {[%emt 00:00:14]} Ka7 {[%clk 00:14:30]}
{[%emt 00:00:09]} 42. e8=Q {[%clk 00:14:36]} {[%emt 00:00:13]} a3+ {[%clk
00:14:31]} {[%emt 00:00:04]} 43. Kxa3 {[%clk 00:14:35]} {[%emt 00:00:05]} Kb7
{[%clk 00:14:32]} {[%emt 00:00:05]} 44. Bd5+ {[%clk 00:14:37]} {[%emt
00:00:03]} Kc7 {[%clk 00:14:29]} {[%emt 00:00:07]} 45. Rh7+ {[%clk 00:14:29]}
{[%emt 00:00:13]} Kd6 {[%clk 00:14:30]} {[%emt 00:00:04]} 46. Qe6# {[%clk
00:14:27]} {[%emt 00:00:07]} 1-0

[Event "MCR rapid mládeže 2023 U16"]
[Site "Harachov, Czech Republic"]
[Date "2023.09.10"]
[Round "9.34"]
[White "Trejbal, Jindrich"]
[Black "Bucek, Vit"]
[Result "0-1"]
[TimeControl "20min+5s/move"]
[WhiteElo "1088"]
[BlackElo "1283"]

1. d4 {[%clk 00:19:55]} {[%emt 00:00:15]} Nf6 {[%clk 00:20:07]} {[%emt
00:00:03]} 2. Nc3 {[%clk 00:19:48]} {[%emt 00:00:11]} d5 {[%clk 00:20:03]}
{[%emt 00:00:09]} 3. Bg5 {[%clk 00:19:51]} {[%emt 00:00:03]} Nbd7 {[%clk
00:20:01]} {[%emt 00:00:07]} 4. e3 {[%clk 00:19:50]} {[%emt 00:00:06]} h6
{[%clk 00:19:17]} {[%emt 00:00:49]} 5. Bh4 {[%clk 00:19:22]} {[%emt 00:00:33]}
b6 {[%clk 00:18:51]} {[%emt 00:00:31]} 6. Bd3 {[%clk 00:19:23]} {[%emt
00:00:03]} Bb7 {[%clk 00:18:36]} {[%emt 00:00:18]} 7. Nge2 {[%clk 00:19:05]}
{[%emt 00:00:26]} e6 {[%clk 00:18:00]} {[%emt 00:00:41]} 8. O-O {[%clk
00:18:48]} {[%emt 00:00:22]} Be7 {[%clk 00:17:33]} {[%emt 00:00:31]} 9. h3
{[%clk 00:18:21]} {[%emt 00:00:33]} O-O {[%clk 00:17:05]} {[%emt 00:00:33]} 10.
Bg3 {[%clk 00:17:40]} {[%emt 00:00:45]} c5 {[%clk 00:16:30]} {[%emt 00:00:38]}
11. b3 {[%clk 00:16:38]} {[%emt 00:01:10]} Rc8 {[%clk 00:15:53]} {[%emt
00:00:40]} 12. Na4 {[%clk 00:15:44]} {[%emt 00:01:02]} c4 {[%clk 00:14:48]}
{[%emt 00:01:09]} 13. bxc4 {[%clk 00:15:17]} {[%emt 00:00:31]} dxc4 {[%clk
00:14:46]} {[%emt 00:00:07]} 14. Nb2 {[%clk 00:15:16]} {[%emt 00:00:07]} cxd3
{[%clk 00:14:46]} {[%emt 00:00:05]} 15. Nxd3 {[%clk 00:15:19]} {[%emt
00:00:02]} Ne4 {[%clk 00:13:46]} {[%emt 00:01:01]} 16. Bh2 {[%clk 00:15:05]}
{[%emt 00:00:22]} Nc3 {[%clk 00:13:02]} {[%emt 00:00:47]} 17. Nxc3 {[%clk
00:14:45]} {[%emt 00:00:29]} Rxc3 {[%clk 00:13:03]} {[%emt 00:00:03]} 18. Qd2
{[%clk 00:14:45]} {[%emt 00:00:04]} Rc8 {[%clk 00:12:40]} {[%emt 00:00:25]} 19.
a4 {[%clk 00:14:23]} {[%emt 00:00:31]} Nf6 {[%clk 00:12:19]} {[%emt 00:00:23]}
20. Rfc1 {[%emt 00:01:47]} Bd6 {[%clk 00:12:03]} {[%emt 00:00:17]} 21. f4
{[%clk 00:12:45]} {[%emt 00:00:08]} Ne4 {[%clk 00:11:17]} {[%emt 00:00:48]} 22.
Qe1 {[%clk 00:12:50]} Qc7 {[%clk 00:10:33]} {[%emt 00:00:46]} 23. c4 {[%clk
00:12:39]} {[%emt 00:00:22]} Ba6 {[%clk 00:09:56]} {[%emt 00:00:39]} 24. Rc2
{[%clk 00:11:47]} {[%emt 00:01:00]} Qd7 {[%clk 00:09:11]} {[%emt 00:00:43]} 25.
Qc1 {[%clk 00:11:07]} {[%emt 00:00:51]} Rfd8 {[%clk 00:08:00]} {[%emt
00:01:16]} 26. a5 {[%clk 00:10:15]} {[%emt 00:00:58]} Qb7 {[%clk 00:06:44]}
{[%emt 00:01:15]} 27. Ra4 {[%clk 00:09:16]} {[%emt 00:01:11]} b5 {[%clk
00:05:58]} {[%emt 00:00:47]} 28. Rb2 {[%clk 00:07:53]} {[%emt 00:01:31]} Qd7
{[%clk 00:05:33]} {[%emt 00:00:26]} 29. Raa2 {[%clk 00:07:13]} {[%emt
00:00:49]} bxc4 {[%clk 00:05:11]} {[%emt 00:00:26]} 30. Ne5 {[%clk 00:06:52]}
{[%emt 00:00:27]} Bxe5 {[%clk 00:04:56]} {[%emt 00:00:20]} 31. fxe5 {[%clk
00:06:44]} {[%emt 00:00:13]} c3 {[%clk 00:04:22]} {[%emt 00:00:36]} 32. Rb4
{[%clk 00:06:07]} {[%emt 00:00:43]} Rb8 {[%clk 00:03:41]} {[%emt 00:00:42]} 33.
Rba4 {[%clk 00:05:40]} {[%emt 00:00:37]} Bd3 {[%clk 00:03:34]} {[%emt
00:00:11]} 34. Ra1 {[%clk 00:05:04]} {[%emt 00:00:42]} Rb1 {[%clk 00:03:12]}
{[%emt 00:00:26]} 35. Rxb1 {[%clk 00:04:56]} {[%emt 00:00:14]} Bxb1 {[%clk
00:03:15]} {[%emt 00:00:03]} 36. Ra1 {[%clk 00:04:37]} {[%emt 00:00:24]} c2
{[%clk 00:03:09]} {[%emt 00:00:11]} 37. Ra4 {[%clk 00:04:09]} {[%emt 00:00:33]}
Nc3 {[%clk 00:02:33]} {[%emt 00:00:38]} 38. Rc4 {[%clk 00:04:05]} {[%emt
00:00:11]} Ne2+ {[%clk 00:02:35]} {[%emt 00:00:03]} 39. Kf2 {[%clk 00:04:06]}
{[%emt 00:00:05]} Nxc1 {[%clk 00:02:38]} {[%emt 00:00:02]} 40. Ke1 {[%clk
00:04:09]} {[%emt 00:00:01]} Nd3+ {[%clk 00:02:36]} {[%emt 00:00:07]} 41. Ke2
{[%clk 00:04:09]} {[%emt 00:00:05]} c1=Q {[%clk 00:02:22]} {[%emt 00:00:20]} 42.
Rxc1 {[%clk 00:04:04]} {[%emt 00:00:09]} Nxc1+ {[%clk 00:02:26]} {[%emt
00:00:01]} 43. Kf3 {[%clk 00:04:04]} {[%emt 00:00:05]} Qc6+ {[%clk 00:02:26]}
{[%emt 00:00:06]} 44. Kf4 {[%clk 00:04:06]} {[%emt 00:00:03]} Qe4+ {[%clk
00:02:28]} {[%emt 00:00:03]} 45. Kg3 {[%clk 00:04:06]} {[%emt 00:00:04]} Ne2+
{[%clk 00:02:29]} {[%emt 00:00:03]} 46. Kf2 {[%clk 00:04:08]} {[%emt 00:00:03]}
Rc8 {[%emt 00:00:15]} 47. Bg1 {[%clk 00:03:44]} {[%emt 00:00:28]} Nxg1 {[%clk
00:02:18]} {[%emt 00:00:09]} 48. Kg3 {[%clk 00:03:47]} {[%emt 00:00:02]} Qxe3+
{[%clk 00:02:16]} {[%emt 00:00:07]} 49. Kh4 {[%clk 00:03:42]} {[%emt 00:00:09]}
Qg5# {[%clk 00:02:16]} {[%emt 00:00:04]} 0-1

[Event "MCR rapid mládeže 2023 U16"]
[Site "Harachov, Czech Republic"]
[Date "2023.09.10"]
[Round "9.35"]
[White "Burel, Jan"]
[Black "Skoloud, Josef"]
[Result "0-1"]
[TimeControl "20min+5s/move"]
[WhiteElo "1046"]
[BlackElo "1075"]

1. e4 {[%clk 00:20:08]} {[%emt 00:00:02]} e5 {[%clk 00:20:08]} {[%emt
00:00:03]} 2. Nf3 {[%clk 00:20:08]} {[%emt 00:00:04]} Nf6 {[%clk 00:20:10]}
{[%emt 00:00:02]} 3. Nxe5 {[%clk 00:20:07]} {[%emt 00:00:07]} d6 {[%clk
00:20:08]} {[%emt 00:00:07]} 4. Nf3 {[%clk 00:20:07]} {[%emt 00:00:04]} Nxe4
{[%clk 00:20:10]} {[%emt 00:00:04]} 5. Qe2 {[%clk 00:20:05]} {[%emt 00:00:07]}
Qe7 {[%clk 00:20:13]} {[%emt 00:00:02]} 6. d3 {[%clk 00:20:00]} {[%emt
00:00:09]} Nf6 {[%clk 00:20:16]} {[%emt 00:00:03]} 7. Qxe7+ {[%clk 00:20:00]}
Bxe7 {[%clk 00:20:14]} {[%emt 00:00:11]} 8. Nc3 {[%clk 00:19:55]} O-O {[%clk
00:19:55]} {[%emt 00:00:34]} 9. Be2 {[%clk 00:19:55]} Nc6 {[%clk 00:19:43]}
{[%emt 00:00:23]} 10. O-O {[%clk 00:19:41]} Re8 {[%clk 00:19:21]} {[%emt
00:00:47]} 11. Re1 {[%clk 00:19:13]} Nb4 {[%clk 00:18:56]} {[%emt 00:01:02]} 12.
Bd1 {[%clk 00:18:53]} Bg4 {[%clk 00:18:32]} {[%emt 00:00:54]} 13. a3 {[%clk
00:18:52]} Bxf3 {[%clk 00:18:04]} {[%emt 00:00:39]} 14. axb4 {[%clk 00:18:48]}
Bxd1 {[%clk 00:17:40]} {[%emt 00:00:38]} 15. Nxd1 {[%clk 00:18:24]} {[%emt
00:00:18]} d5 {[%clk 00:17:13]} 16. Bd2 {[%clk 00:18:24]} a6 {[%clk 00:17:13]}
{[%emt 00:00:53]} 17. Ne3 {[%clk 00:17:47]} {[%emt 00:01:27]} d4 18. Nf5 {[%clk
00:17:47]} Bf8 {[%clk 00:15:25]} {[%emt 00:01:18]} 19. Rxe8 {[%clk 00:17:44]}
Rxe8 {[%clk 00:15:23]} {[%emt 00:00:15]} 20. Nxd4 {[%emt 00:00:28]} Nd5 {[%clk
00:14:53]} {[%emt 00:00:17]} 21. c3 {[%clk 00:17:22]} {[%emt 00:00:22]} Bd6
{[%clk 00:13:11]} {[%emt 00:01:47]} 22. f3 {[%clk 00:16:36]} {[%emt 00:00:51]}
Nf4 {[%clk 00:12:36]} {[%emt 00:00:40]} 23. Bxf4 {[%clk 00:16:31]} {[%emt
00:00:09]} Bxf4 {[%clk 00:12:39]} {[%emt 00:00:02]} 24. Nc2 {[%clk 00:15:42]}
{[%emt 00:00:54]} Re2 {[%clk 00:12:11]} {[%emt 00:00:34]} 25. Re1 {[%clk
00:15:30]} {[%emt 00:00:16]} Rxe1+ {[%clk 00:12:04]} {[%emt 00:00:12]} 26. Nxe1
{[%clk 00:15:31]} {[%emt 00:00:04]} Bc1 {[%clk 00:11:59]} {[%emt 00:00:10]} 27.
c4 {[%clk 00:14:58]} {[%emt 00:00:38]} Bxb2 {[%clk 00:11:50]} {[%emt 00:00:15]}
28. Nc2 {[%clk 00:14:24]} Kf8 {[%clk 00:11:38]} {[%emt 00:00:55]} 29. Kf2
{[%clk 00:14:25]} Bc1 {[%clk 00:11:33]} {[%emt 00:00:15]} 30. Kg3 {[%clk
00:14:10]} {[%emt 00:00:19]} Ke7 {[%clk 00:11:36]} {[%emt 00:00:02]} 31. Kg4
{[%emt 00:00:43]} Ke6 32. d4 {[%clk 00:13:43]} b5 {[%emt 00:02:00]} 33. cxb5
{[%clk 00:12:51]} axb5 {[%clk 00:10:38]} {[%emt 00:00:05]} 34. Ne1 {[%clk
00:12:50]} {[%emt 00:00:05]} Kd5 {[%clk 00:10:31]} {[%emt 00:00:12]} 35. Nd3
{[%clk 00:12:53]} {[%emt 00:00:02]} Bd2 {[%clk 00:10:13]} {[%emt 00:00:24]} 36.
Kf5 {[%clk 00:12:35]} {[%emt 00:00:17]} Kxd4 {[%clk 00:10:12]} {[%emt
00:00:13]} 37. Ne5 {[%clk 00:12:33]} {[%emt 00:00:04]} Bxb4 {[%clk 00:09:34]}
{[%emt 00:00:45]} 38. Nxf7 {[%clk 00:12:34]} {[%emt 00:00:04]} c5 {[%clk
00:09:27]} {[%emt 00:00:13]} 39. Nd6 {[%clk 00:12:30]} {[%emt 00:00:06]} c4
{[%clk 00:08:40]} {[%emt 00:00:54]} 40. Nxb5+ {[%clk 00:12:33]} {[%emt
00:00:02]} Kd3 {[%clk 00:08:37]} {[%emt 00:00:08]} 41. Ke6 {[%clk 00:12:30]}
{[%emt 00:00:06]} c3 {[%clk 00:08:38]} {[%emt 00:00:05]} 42. Nxc3 {[%clk
00:12:27]} {[%emt 00:00:08]} Bxc3 {[%clk 00:08:42]} {[%emt 00:00:02]} 43. Kf5
{[%clk 00:12:21]} {[%emt 00:00:09]} Ke3 {[%clk 00:08:42]} {[%emt 00:00:05]} 44.
Kg4 {[%clk 00:12:18]} {[%emt 00:00:08]} Kf2 {[%clk 00:08:28]} {[%emt 00:00:20]}
45. Kh3 {[%clk 00:12:08]} {[%emt 00:00:15]} Be5 {[%clk 00:08:21]} {[%emt
00:00:12]} 46. g4 {[%clk 00:11:08]} {[%emt 00:01:05]} Bf4 {[%clk 00:08:16]}
{[%emt 00:00:11]} 47. Kh4 {[%clk 00:11:00]} {[%emt 00:00:08]} h6 {[%clk
00:08:05]} {[%emt 00:00:20]} 48. h3 {[%clk 00:11:00]} {[%emt 00:00:05]} Kxf3
{[%clk 00:08:04]} {[%emt 00:00:06]} 49. Kh5 {[%clk 00:11:00]} {[%emt 00:00:04]}
Kg3 {[%clk 00:08:00]} {[%emt 00:00:10]} 50. h4 {[%clk 00:10:55]} {[%emt
00:00:07]} Bc1 {[%clk 00:07:48]} {[%emt 00:00:20]} 51. g5 {[%clk 00:10:24]}
{[%emt 00:00:33]} hxg5 {[%clk 00:07:50]} {[%emt 00:00:05]} 52. hxg5 {[%clk
00:10:27]} {[%emt 00:00:03]} Bb2 {[%clk 00:07:53]} {[%emt 00:00:03]} 53. g6
{[%clk 00:10:04]} {[%emt 00:00:26]} Kf4 {[%clk 00:07:56]} {[%emt 00:00:03]} 54.
Kh4 {[%clk 00:10:05]} {[%emt 00:00:03]} Kf5 {[%clk 00:07:57]} {[%emt 00:00:04]}
55. Kh5 {[%clk 00:09:56]} {[%emt 00:00:14]} Ba1 {[%clk 00:07:59]} {[%emt
00:00:04]} 56. Kh4 {[%clk 00:09:57]} {[%emt 00:00:03]} Kxg6 {[%clk 00:08:01]}
{[%emt 00:00:04]} 57. Kg4 {[%clk 00:10:00]} {[%emt 00:00:02]} Bb2 {[%clk
00:08:02]} {[%emt 00:00:04]} 58. Kg3 {[%clk 00:10:01]} {[%emt 00:00:03]} Kg5
{[%clk 00:08:06]} {[%emt 00:00:02]} 0-1

[Event "MCR rapid mládeže 2023 U16"]
[Site "Harachov, Czech Republic"]
[Date "2023.09.10"]
[Round "9.36"]
[White "Vydra, David"]
[Black "Zeman, Jonas"]
[Result "0-1"]
[TimeControl "20min+5s/move"]
[WhiteElo "1137"]
[BlackElo "1130"]

1. e4 {[%clk 00:20:08]} c5 {[%clk 00:20:08]} {[%emt 00:00:03]} 2. Nf3 {[%clk
00:20:10]} {[%emt 00:00:02]} d6 {[%clk 00:20:11]} {[%emt 00:00:02]} 3. d4
{[%clk 00:20:13]} {[%emt 00:00:02]} cxd4 {[%clk 00:20:12]} {[%emt 00:00:04]} 4.
Nxd4 {[%clk 00:20:16]} {[%emt 00:00:02]} Nf6 {[%clk 00:20:13]} {[%emt
00:00:05]} 5. Nc3 {[%clk 00:20:19]} {[%emt 00:00:02]} g6 {[%clk 00:20:15]}
{[%emt 00:00:02]} 6. f3 {[%clk 00:20:14]} {[%emt 00:00:10]} Bg7 {[%clk
00:20:12]} {[%emt 00:00:07]} 7. Be3 {[%clk 00:20:15]} {[%emt 00:00:05]} Bd7
{[%clk 00:20:08]} {[%emt 00:00:10]} 8. Bc4 {[%clk 00:20:13]} {[%emt 00:00:06]}
a6 {[%clk 00:20:00]} {[%emt 00:00:14]} 9. Bb3 {[%clk 00:20:13]} {[%emt
00:00:05]} Nc6 {[%clk 00:19:39]} {[%emt 00:00:25]} 10. Qd2 {[%clk 00:20:13]}
{[%emt 00:00:05]} O-O {[%clk 00:19:30]} {[%emt 00:00:14]} 11. O-O-O {[%clk
00:20:06]} {[%emt 00:00:12]} b5 {[%clk 00:18:47]} {[%emt 00:00:49]} 12. h4
{[%clk 00:20:06]} {[%emt 00:00:04]} h5 {[%clk 00:18:46]} {[%emt 00:00:05]} 13.
g4 {[%clk 00:20:08]} {[%emt 00:00:04]} hxg4 {[%clk 00:18:41]} {[%emt 00:00:10]}
14. Bh6 {[%clk 00:19:46]} {[%emt 00:00:27]} Nh5 {[%clk 00:17:31]} {[%emt
00:01:15]} 15. Bxg7 {[%clk 00:18:50]} {[%emt 00:01:01]} Kxg7 {[%clk 00:17:27]}
{[%emt 00:00:08]} 16. fxg4 {[%clk 00:18:50]} {[%emt 00:00:07]} Bxg4 {[%clk
00:17:25]} {[%emt 00:00:06]} 17. Rdg1 {[%clk 00:18:51]} {[%emt 00:00:03]} Bd7
{[%clk 00:17:10]} {[%emt 00:00:21]} 18. Nxc6 {[%clk 00:18:29]} {[%emt
00:00:28]} Bxc6 {[%clk 00:17:01]} {[%emt 00:00:12]} 19. Qg5 {[%clk 00:18:31]}
{[%emt 00:00:05]} Rh8 {[%clk 00:16:49]} {[%emt 00:00:16]} 20. Rf1 {[%clk
00:18:04]} {[%emt 00:00:32]} e6 {[%clk 00:15:19]} {[%emt 00:01:36]} 21. Qg2
{[%clk 00:17:17]} {[%emt 00:00:49]} Qe7 {[%clk 00:14:07]} {[%emt 00:01:19]} 22.
Rhg1 {[%clk 00:16:31]} {[%emt 00:00:51]} a5 {[%clk 00:12:55]} {[%emt 00:01:18]}
23. a3 {[%clk 00:15:41]} {[%emt 00:00:55]} a4 {[%clk 00:11:31]} {[%emt
00:01:29]} 24. Ba2 {[%clk 00:15:40]} {[%emt 00:00:05]} b4 {[%clk 00:11:07]}
{[%emt 00:00:29]} 25. axb4 {[%clk 00:15:37]} {[%emt 00:00:08]} a3 {[%clk
00:10:57]} {[%emt 00:00:16]} 26. b3 {[%clk 00:15:29]} {[%emt 00:00:13]} Rab8
{[%clk 00:10:17]} {[%emt 00:00:44]} 27. b5 {[%clk 00:15:06]} {[%emt 00:00:29]}
Bxb5 {[%clk 00:10:05]} {[%emt 00:00:16]} 28. Nxb5 {[%clk 00:15:09]} {[%emt
00:00:03]} Rxb5 {[%clk 00:10:06]} {[%emt 00:00:03]} 29. Qe2 {[%clk 00:15:10]}
{[%emt 00:00:04]} Rc5 {[%clk 00:09:25]} {[%emt 00:00:46]} 30. Qd2 {[%clk
00:14:45]} {[%emt 00:00:30]} Rhc8 {[%clk 00:08:44]} {[%emt 00:00:45]} 31. Bb1
{[%clk 00:14:04]} {[%emt 00:00:46]} a2 {[%clk 00:08:25]} {[%emt 00:00:24]} 32.
Bxa2 {[%clk 00:14:05]} {[%emt 00:00:05]} Rxc2+ {[%clk 00:08:04]} {[%emt
00:00:25]} 33. Qxc2 {[%clk 00:14:08]} {[%emt 00:00:02]} Rxc2+ {[%clk 00:08:07]}
{[%emt 00:00:02]} 34. Kxc2 {[%clk 00:14:11]} {[%emt 00:00:02]} Qxh4 {[%clk
00:08:00]} {[%emt 00:00:11]} 35. Re1 {[%clk 00:14:03]} {[%emt 00:00:13]} Nf6
{[%clk 00:07:16]} {[%emt 00:00:50]} 36. e5 {[%clk 00:13:56]} {[%emt 00:00:13]}
dxe5 {[%clk 00:07:11]} {[%emt 00:00:10]} 37. Rxe5 {[%clk 00:13:56]} {[%emt
00:00:04]} Qf2+ {[%clk 00:07:11]} {[%emt 00:00:05]} 38. Kb1 {[%clk 00:13:50]}
{[%emt 00:00:10]} Qxg1+ {[%clk 00:07:13]} {[%emt 00:00:04]} 39. Kc2 {[%clk
00:13:53]} {[%emt 00:00:02]} Qh2+ {[%emt 00:00:13]} 0-1